fUSD/lending_fUSD_20251224
["ID","MTS","AMOUNT","RATE_DAILY","PERIOD"]
[399614358,1766548238646,-500.0,0.00016168,2]
[399614359,1766548238657,-500.0,0.00016168,2]
[399614360,1766548238668,-522.31997022,0.00016168,2]
[399614361,1766548238679,-1193.1856551,0.00016174,5]
[399614362,1766548238690,-150.0,0.00016194,2]
[399614363,1766548238700,-737.59,0.00016268,2]
[399614364,1766548238711,-1474.12775144,0.00016268,2]
[399614365,1766548238721,-502.73869828,0.00016268,2]
[399614366,1766548238732,-1500.0,0.00016268,2]
[399614368,1766548238742,-1500.0,0.00016268,2]
[399614370,1766548238753,-510.0,0.00016294,2]
[399614372,1766548238764,-150.0,0.00016307,2]
[399614374,1766548238774,-150.0,0.0001642,2]
[399614376,1766548238785,-150.0,0.0001642,2]
[399614378,1766548238794,-150.0,0.0001642,2]
[399614380,1766548238804,-7258.30101545,0.00016438,2]
[399614382,1766548238815,-188.4651769,0.00016438,2]
[399614384,1766548238825,-500.0,0.00016438,2]
[399614386,1766548238837,-500.0,0.00016438,2]
[399614388,1766548238850,-500.0,0.00016438,2]
[399614391,1766548238860,-500.0,0.00016438,2]
[399614393,1766548238870,-500.0,0.00016438,2]
[399614395,1766548238881,-500.0,0.00016438,2]
[399614397,1766548238891,-500.0,0.00016438,2]
[399614399,1766548238900,-500.0,0.00016438,2]
[399614401,1766548238910,-500.0,0.00016438,2]
[399614403,1766548238920,-500.0,0.00016438,2]
[399614405,1766548238930,-500.0,0.00016438,2]
[399614407,1766548238939,-294.82732144,0.00016438,2]
[399614409,1766548238949,-500.0,0.00016438,2]
[399614411,1766548238959,-500.0,0.00016438,2]
[399614413,1766548238970,-500.0,0.00016438,2]
[399614415,1766548238980,-500.0,0.00016438,2]
[399614417,1766548238993,-500.0,0.00016438,2]
[399614419,1766548239003,-500.0,0.00016438,2]
[399614420,1766548239013,-500.0,0.00016438,2]
[399614421,1766548239023,-500.0,0.00016438,2]
[399614423,1766548239032,-500.0,0.00016438,2]
[399614425,1766548239044,-500.0,0.00016438,2]
[399614427,1766548239054,-500.0,0.00016438,2]
[399614429,1766548239063,-500.0,0.00016438,2]
[399614431,1766548239074,-500.0,0.00016438,2]
[399614433,1766548239085,-500.0,0.00016438,2]
[399614435,1766548239095,-500.0,0.00016438,2]
[399614437,1766548239105,-500.0,0.00016438,2]
[399614439,1766548239116,-500.0,0.00016438,2]
[399614442,1766548239126,-500.0,0.00016438,2]
[399614444,1766548239137,-500.0,0.00016438,2]
[399614446,1766548239147,-500.0,0.00016438,2]
[399614447,1766548239157,-500.0,0.00016438,2]
[399614450,1766548239167,-500.0,0.00016438,2]
[399614452,1766548239177,-500.0,0.00016438,2]
[399614454,1766548239187,-500.0,0.00016438,2]
[399614456,1766548239196,-500.0,0.00016438,2]
[399614458,1766548239206,-500.0,0.00016438,2]
[399614460,1766548239216,-500.0,0.00016438,2]
[399614462,1766548239226,-500.0,0.00016438,2]
[399614464,1766548239237,-500.0,0.00016438,2]
[399614466,1766548239246,-500.0,0.00016438,2]
[399614468,1766548239256,-500.0,0.00016438,2]
[399614470,1766548239266,-500.0,0.00016438,2]
[399614472,1766548239276,-500.0,0.00016438,2]
[399614474,1766548239288,-500.0,0.00016438,2]
[399614476,1766548239298,-500.0,0.00016438,2]
[399614478,1766548239308,-500.0,0.00016438,2]
[399614480,1766548239318,-500.0,0.00016438,2]
[399614482,1766548239328,-500.0,0.00016438,2]
[399614484,1766548239338,-500.0,0.00016438,2]
[399614486,1766548239348,-500.0,0.00016438,2]
[399614488,1766548239358,-500.0,0.00016438,2]
[399614490,1766548239368,-500.0,0.00016438,2]
[399614492,1766548239378,-500.0,0.00016438,2]
[399614494,1766548239388,-500.0,0.00016438,2]
[399614496,1766548239398,-500.0,0.00016438,2]
[399614498,1766548239408,-500.0,0.00016438,2]
[399614500,1766548239418,-500.0,0.00016438,2]
[399614503,1766548239430,-500.0,0.00016438,2]
[399614505,1766548239440,-500.0,0.00016438,2]
[399614507,1766548239449,-200.0,0.00016438,2]
[399614509,1766548239459,-500.0,0.00016438,2]
[399614511,1766548239469,-500.0,0.00016438,2]
[399614513,1766548239479,-500.0,0.00016438,2]
[399614515,1766548239488,-500.0,0.00016438,2]
[399614517,1766548239498,-500.0,0.00016438,2]
[399614519,1766548239508,-500.0,0.00016438,2]
[399614521,1766548239518,-500.0,0.00016438,2]
[399614523,1766548239527,-500.0,0.00016438,2]
[399614525,1766548239538,-500.0,0.00016438,2]
[399614527,1766548239548,-500.0,0.00016438,2]
[399614529,1766548239557,-500.0,0.00016438,2]
[399614531,1766548239570,-150.0,0.00016533,2]
[399614533,1766548239579,-737.6029925,0.00016542,2]
[399614535,1766548239589,-150.0,0.00016562,2]
[399614537,1766548239600,-150.0,0.00016562,2]
[399614539,1766548239610,-150.0,0.00016562,2]
[399614542,1766548239621,-694.07800042,0.00016579,2]
[399614544,1766548239630,-480.0,0.00016601,2]
[399614546,1766548239640,-420.0,0.00016602,2]
[399614548,1766548239649,-150.0,0.00016647,2]
[399614550,1766548239659,-1680.0,0.00016685,2]
[399614552,1766548239669,-250.0,0.00016688,2]
[399614554,1766548239679,-300.0,0.00016688,2]
[399614556,1766548239689,-300.0,0.00016688,2]
[399614558,1766548239699,-195.0,0.00016688,2]
[399614560,1766548239709,-153.69197259,0.00016688,4]
[399614562,1766548239720,-4649.50351038,0.00016693,2]
[399614565,1766548239731,-150.0,0.00016703,2]
[399614567,1766548239742,-150.0,0.00016703,2]
[399614569,1766548239752,-150.0,0.0001676,2]
[399614571,1766548239762,-201.47691223,0.00016796,2]
[399614573,1766548239773,-4649.50351038,0.00016796,2]
[399614575,1766548239783,-1505.52960435,0.00016816,2]
[399614577,1766548239793,-150.0,0.00016873,2]
[399614579,1766548239803,-3730.9474,0.000169,2]
[399614581,1766548239814,-15001.19063891,0.000169,2]
[399614583,1766548239824,-4649.50351038,0.000169,2]
[399614585,1766548239834,-909.91046589,0.000169,2]
[399614587,1766548239846,-208.87321929,0.000169,2]
[399614589,1766548239856,-1303.38594334,0.000169,2]
[399614591,1766548239866,-1268.80550384,0.000169,2]
[399614593,1766548239876,-500.0,0.000169,2]
[399614595,1766548239887,-500.0,0.000169,2]
[399614597,1766548239896,-500.0,0.000169,2]
[399614599,1766548239906,-500.0,0.000169,2]
[399614601,1766548239917,-500.0,0.000169,2]
[399614603,1766548239926,-500.0,0.000169,2]
[399614605,1766548239936,-500.0,0.000169,2]
[399614607,1766548239946,-500.0,0.000169,2]
[399614609,1766548239956,-500.0,0.000169,2]
[399614611,1766548239966,-500.0,0.000169,2]
[399614613,1766548239975,-500.0,0.000169,2]
[399614615,1766548239986,-500.0,0.000169,2]
[399614617,1766548239995,-500.0,0.000169,2]
[399614619,1766548240006,-500.0,0.000169,2]
[399614621,1766548240016,-500.0,0.000169,2]
[399614623,1766548240026,-500.0,0.000169,2]
[399614625,1766548240036,-500.0,0.000169,2]
[399614627,1766548240046,-500.0,0.000169,2]
[399614629,1766548240055,-500.0,0.000169,2]
[399614631,1766548240065,-500.0,0.000169,2]
[399614633,1766548240075,-500.0,0.000169,2]
[399614635,1766548240085,-500.0,0.000169,2]
[399614637,1766548240095,-500.0,0.000169,2]
[399614639,1766548240104,-500.0,0.000169,2]
[399614641,1766548240114,-500.0,0.000169,2]
[399614643,1766548240124,-425.97674525,0.000169,2]
[399614645,1766548240134,-502.81963475,0.00016983,2]
[399614647,1766548240143,-167.34253096,0.00016986,2]
[399614649,1766548240153,-161.36386193,0.00016986,2]
[399614651,1766548240163,-170.99701499,0.00016986,2]
[399614654,1766548240173,-150.0,0.00016986,2]
[399614656,1766548240183,-257.33467835,0.00016986,2]
[399614658,1766548240193,-163.76766148,0.00016986,2]
[399614660,1766548240203,-150.00000001,0.00016986,2]
[399614662,1766548240214,-154.07691811,0.00016986,2]
[399614664,1766548240224,-156.0209703,0.00016986,2]
[399614666,1766548240234,-155.57587924,0.00016986,2]
[399614668,1766548240244,-168.10359293,0.00016986,2]
[399614670,1766548240254,-694.07800042,0.0001699,2]
[399614672,1766548240264,-694.07800042,0.0001699,2]
[399614674,1766548240274,-25488.1764956,0.00016993,2]
[399614676,1766548240283,-3382.4184572,0.00016993,2]
[399614678,1766548240293,-222938.1032588,0.00016993,2]
[399614680,1766548240303,-151.0,0.00016997,2]
[399614682,1766548240312,-1193.18565511,0.00016999,5]
[399614684,1766548240322,-500.0,0.00016999,2]
[399614686,1766548240333,-500.0,0.00016999,2]
[399614688,1766548240343,-500.0,0.00016999,2]
[399614690,1766548240353,-521.0,0.00016999,2]
[399614692,1766548240363,-300.0,0.00016999,2]
[399614694,1766548240372,-300.0,0.00016999,2]
[399614696,1766548240382,-666.0,0.00016999,2]
[399614698,1766548240392,-306.8140135,0.00016999,2]
[399614700,1766548240402,-423.34883705,0.00016999,2]
[399614702,1766548240412,-3870519.36600936,0.00017,2]
[399614727,1766548240654,-23217.36,0.00017,2]
[399614738,1766548240746,-549853.19254851,0.00017,2]
[399614740,1766548240756,-1403526.20915789,0.00017,2]
[399614742,1766548240766,-200.0,0.00017,2]
[399614744,1766548240776,-151.0,0.00017,2]
[399614746,1766548240787,-151.0,0.00017,2]
[399614748,1766548240797,-151.0,0.00017,2]
[399614750,1766548240806,-151.0,0.00017,2]
[399614752,1766548240816,-250.0,0.00017,2]
[399614754,1766548240827,-219.024973,0.00017,2]
[399614756,1766548240837,-151.0,0.00017,2]
[399614758,1766548240850,-151.0,0.00017,2]
[399614760,1766548240860,-151.0,0.00017,2]
[399614762,1766548240869,-151.0,0.00017,2]
[399614764,1766548240879,-270.706318,0.00017,2]
[399614766,1766548240890,-270.706318,0.00017,2]
[399614768,1766548240900,-270.706318,0.00017,2]
[399614770,1766548240909,-151.0,0.00017,2]
[399614772,1766548240920,-270.706318,0.00017,2]
[399614774,1766548240929,-151.0,0.00017,2]
[399614776,1766548240939,-151.0,0.00017,2]
[399614778,1766548240948,-151.0,0.00017,2]
[399614780,1766548240958,-151.0,0.00017,2]
[399614782,1766548240968,-160.32441,0.00017,2]
[399614784,1766548240977,-160.32441,0.00017,2]
[399614786,1766548240987,-160.32441,0.00017,2]
[399614816,1766548241243,-160.32441,0.00017,2]
[399614820,1766548241292,-151.0,0.00017,2]
[399614822,1766548241302,-151.0,0.00017,2]
[399614824,1766548241312,-151.0,0.00017,2]
[399614826,1766548241322,-151.0,0.00017,2]
[399614828,1766548241332,-151.0,0.00017,2]
[399614830,1766548241343,-151.0,0.00017,2]
[399614832,1766548241353,-157.31902595,0.00017,2]
[399614834,1766548241363,-157.023662,0.00017,2]
[399614836,1766548241374,-1000.0,0.00017093,2]
[399614838,1766548241384,-200.0,0.0001717,2]
[399614840,1766548241394,-1268.80550383,0.00017298,2]
[399614842,1766548241404,-200.0,0.00017342,2]
[399614844,1766548241415,-469.21,0.00017499,2]
[399614846,1766548241425,-1268.80550383,0.00017697,2]
[399614848,1766548241435,-1268.80550383,0.00018095,2]
[399614850,1766548241445,-587.0,0.00018166,2]
[399614852,1766548241455,-2351.0,0.0001835,2]
[399614854,1766548241465,-1268.80550383,0.00018494,2]
[399614856,1766548241474,-500.0,0.00018533,2]
[399614858,1766548241484,-151.02,0.000188,2]
[399614860,1766548241494,-151.02,0.000188,2]
[399614862,1766548241504,-151.02,0.000188,2]
[399614864,1766548241513,-151.02,0.000188,2]
[399614866,1766548241524,-1268.80550383,0.00018892,2]
[399614868,1766548241534,-3882.42387024,0.000189,3]
[399614870,1766548241544,-300.0,0.0001893,2]
[399614872,1766548241554,-500.0,0.0001893,2]
[399614875,1766548241564,-500.0,0.0001893,2]
[399614877,1766548241575,-442259.64,0.00018931,2]
[399614879,1766548241585,-1000.0,0.00018992,2]
[399614881,1766548241595,-154.29092657,0.00018997,2]
[399614882,1766548241604,-300.0,0.00018999,2]
[399614884,1766548241614,-166.0,0.00019,2]
[399614886,1766548241624,-57734.892673,0.00019,2]
[399614888,1766548241634,-300.0,0.00019,2]
[399614891,1766548241644,-500.0,0.00019068,2]
[399614893,1766548241654,-309.66881756,0.00019082,2]
[399614895,1766548241664,-200.0,0.00019171,2]
[399614896,1766548241674,-151.0,0.00019178,2]
[399614897,1766548241690,-151.0,0.00019178,2]
[399614898,1766548241700,-685.135947,0.00019178,2]
[399614900,1766548241710,-685.135947,0.00019178,2]
[399614902,1766548241721,-685.135947,0.00019178,2]
[399614904,1766548241731,-685.135947,0.00019178,2]
[399614906,1766548241740,-151.0,0.00019178,2]
[399614908,1766548241750,-151.0,0.00019178,2]
[399614910,1766548241760,-300.0,0.00019338,2]
[399614912,1766548241771,-754.719572,0.00019376,2]
[399614914,1766548241780,-5687.1809033,0.0001939,2]
[399614916,1766548241790,-49744.2146833,0.0001939,2]
[399614918,1766548241801,-469.21,0.00019443,2]
[399614920,1766548241811,-168.0,0.00019828,2]
[399614922,1766548241821,-199.0,0.00019879,2]
[399614923,1766548241831,-168.4006989,0.00019907,2]
[399614924,1766548241845,-1268.9815857,0.00019925,2]
[399614925,1766548241855,-11099.4345887,0.00019925,2]
[399614926,1766548241865,-500.0,0.0002,2]
[399614927,1766548241875,-100000.0,0.0002,2]
[399614928,1766548241887,-100000.0,0.0002,2]
[399614929,1766548241896,-500.0,0.00020001,2]
[399614930,1766548241906,-500.0,0.00020002,2]
[399614931,1766548241918,-499.9999,0.00020003,2]
[399614932,1766548241929,-9999.99,0.00020145,2]
[399614933,1766548241938,-150.99,0.00020145,2]
[399614934,1766548241948,-292.29,0.00020145,2]
[399614935,1766548241958,-8282.55,0.00020145,2]
[399614936,1766548241968,-520.54,0.00020145,2]
[399614937,1766548241978,-3384.97,0.00020145,2]
[399614938,1766548241988,-2033.81,0.00020145,2]
[399614939,1766548241998,-299.99,0.00020145,7]
[399614940,1766548242008,-150.99,0.00020145,2]
[399614941,1766548242018,-2121.0,0.00020182,2]
[399614942,1766548242028,-760.23,0.00020187,2]
[399614943,1766548242038,-168.0,0.00020344,2]
[399614944,1766548242048,-168.0,0.00020379,2]
[399614945,1766548242058,-909.91046588,0.000204,2]
[399614946,1766548242068,-168.0,0.00020603,2]
[399614947,1766548242078,-168.0,0.0002071,2]
[399614948,1766548242088,-168.0,0.00020734,2]
[399614949,1766548242097,-1000.0,0.00020892,2]
[399614950,1766548242107,-197.19876447,0.00020973,2]
[399614951,1766548242117,-500.0,0.00020973,2]
[399614952,1766548242127,-500.0,0.00020973,2]
[399614953,1766548242137,-207.58860749,0.00020973,2]
[399614954,1766548242148,-500.71273679,0.00020973,2]
[399614956,1766548242158,-530.33299684,0.00020973,2]
[399614957,1766548242167,-156.62518783,0.00020973,2]
[399614958,1766548242177,-501.06943212,0.00020973,2]
[399614959,1766548242187,-350.0,0.00021,2]
[399614960,1766548242196,-100000.0,0.00021,2]
[399614961,1766548242206,-168.0,0.00021338,2]
[399614962,1766548242215,-469.21,0.00021387,2]
[399614963,1766548242225,-168.0,0.00021389,2]
[399614964,1766548242235,-166.0,0.000214,3]
[399614965,1766548242245,-324.21,0.000214,7]
[399614966,1766548242255,-32647.15122059,0.000215,2]
[399614967,1766548242265,-1109.63317787,0.00021521,2]
[399614968,1766548242275,-670.69301146,0.00021521,2]
[399614969,1766548242284,-678.86,0.00021696,2]
[399614970,1766548242295,-5000.0,0.00021918,2]
[399614971,1766548242304,-151.0,0.00021918,2]
[399614972,1766548242314,-151.0,0.00021918,2]
[399614973,1766548242324,-207.81417,0.00021918,2]
[399614974,1766548242335,-216.218907,0.00021918,2]
[399614975,1766548242345,-216.218907,0.00021918,2]
[399614976,1766548242355,-216.218907,0.00021918,2]
[399614977,1766548242365,-216.218907,0.00021918,2]
[399614978,1766548242375,-1488.9,0.00021979,2]
[399614979,1766548242386,-7495.33,0.00022,7]
[399614980,1766548242396,-100000.0,0.00022,2]
[399614981,1766548242406,-151.0,0.00022,2]
[399614982,1766548242416,-151.0,0.00022,2]
[399614983,1766548242426,-160.32441,0.00022,2]
[399614984,1766548242436,-160.32441,0.00022,2]
[399614985,1766548242446,-160.32441,0.00022,2]
[399614986,1766548242456,-160.32441,0.00022,2]
[399614987,1766548242466,-216.218907,0.00022,2]
[399614988,1766548242476,-216.218907,0.00022,2]
[399614989,1766548242486,-216.218907,0.00022,2]
[399614990,1766548242495,-216.218907,0.00022,2]
[399614991,1766548242505,-151.0,0.00022,2]
[399614992,1766548242515,-151.0,0.00022,2]
[399614993,1766548242525,-151.0,0.00022,2]
[399614994,1766548242535,-151.0,0.00022,2]
[399614995,1766548242544,-156.923475,0.00022,2]
[399614996,1766548242554,-151.0,0.00022,2]
[399614997,1766548242565,-678.86,0.000225,2]
[399614998,1766548242576,-327.86,0.000225,7]
[399614999,1766548242586,-383.60586011,0.00022501,2]
[399615001,1766548242595,-161.45530483,0.000226,3]
[399615002,1766548242605,-1000.0,0.00022791,2]
[399615003,1766548242615,-247.91832257,0.00023,120]
[399615004,1766548242624,-1004.38948415,0.00023,2]
[399615005,1766548242634,-400.0,0.00023,2]
[399615006,1766548242644,-100000.0,0.00023,2]
[399615007,1766548242654,-2577.47592189,0.000231,2]
[399615008,1766548242664,-678.86,0.00023303,2]
[399615009,1766548242675,-166.42736222,0.00023318,2]
[399615010,1766548242685,-469.21,0.00023332,2]
[399615011,1766548242696,-200.0,0.000235,2]
[399615012,1766548242706,-184.97,0.00023613,2]
[399615013,1766548242716,-150.18672367,0.00023673,2]
[399615014,1766548242727,-285.61,0.00023798,2]
[399615015,1766548242738,-1488.9,0.00023869,2]
[399615016,1766548242748,-909.91046588,0.000239,2]
[399615017,1766548242758,-300.0,0.00023999,2]
[399615018,1766548242768,-16637.69571982,0.00024,2]
[399615019,1766548242778,-1017.66970628,0.00024,2]
[399615020,1766548242788,-3600.0,0.00024,2]
[399615021,1766548242798,-902.86708974,0.00024,2]
[399615022,1766548242814,-16155.45705399,0.00024,2]
[399615023,1766548242831,-100000.0,0.00024,2]
[399615024,1766548242843,-100000.0,0.00024,2]
[399615025,1766548242856,-325.92,0.00024078,2]
[399615026,1766548242866,-678.86,0.00024107,2]
[399615027,1766548242876,-383.60586011,0.00024134,2]
[399615028,1766548242886,-420.44419647,0.0002421,2]
[399615029,1766548242897,-3683.0309853,0.0002421,2]
[399615030,1766548242907,-1609.0,0.00024287,2]
[399615031,1766548242919,-3458.0,0.00024287,2]
[399615032,1766548242931,-612.0,0.00024287,2]
[399615033,1766548242941,-1326.0,0.00024287,2]
[399615034,1766548242950,-432.0,0.00024287,2]
[399615035,1766548242961,-150.0,0.00024287,2]
[399615036,1766548242971,-200.0,0.00024287,2]
[399615037,1766548242981,-4807.0,0.00024287,2]
[399615038,1766548242991,-150.0,0.00024287,2]
[399615039,1766548243001,-150.0,0.00024287,2]
[399615040,1766548243011,-564.0,0.00024287,2]
[399615041,1766548243021,-6533.0,0.00024287,2]
[399615042,1766548243031,-166.0,0.000243,4]
[399615043,1766548243041,-595.45089847,0.0002465,2]
[399615044,1766548243051,-166.95510473,0.0002465,2]
[399615045,1766548243061,-1090.09,0.00024658,2]
[399615046,1766548243071,-151.0,0.00024658,2]
[399615047,1766548243083,-151.0,0.00024658,2]
[399615048,1766548243092,-204.069289,0.00024658,2]
[399615049,1766548243102,-154.840936,0.00024658,2]
[399615050,1766548243112,-1000.0,0.00024658,2]
[399615051,1766548243123,-151.0,0.00024658,2]
[399615052,1766548243133,-151.0,0.00024658,2]
[399615053,1766548243142,-151.0,0.00024658,2]
[399615054,1766548243152,-151.0,0.00024658,2]
[399615055,1766548243162,-151.0,0.00024658,2]
[399615056,1766548243172,-151.0,0.00024658,2]
[399615058,1766548243182,-151.0,0.00024658,2]
[399615060,1766548243192,-151.0,0.00024658,2]
[399615061,1766548243203,-151.0,0.00024658,2]
[399615062,1766548243212,-151.0,0.00024658,2]
[399615063,1766548243223,-311.05061399,0.00024799,10]
[399615064,1766548243232,-519.87265517,0.00024799,2]
[399615065,1766548243243,-7495.33,0.000248,7]
[399615066,1766548243252,-151.0,0.000248,7]
[399615067,1766548243262,-151.0,0.000248,7]
[399615068,1766548243272,-151.0,0.000248,7]
[399615069,1766548243282,-151.0,0.000248,7]
[399615070,1766548243291,-296.190699,0.000248,7]
[399615071,1766548243301,-151.0,0.000248,7]
[399615072,1766548243311,-685.135947,0.000248,7]
[399615073,1766548243321,-685.135947,0.000248,7]
[399615074,1766548243331,-685.135947,0.000248,7]
[399615075,1766548243341,-685.135947,0.000248,7]
[399615076,1766548243351,-151.0,0.000248,7]
[399615077,1766548243361,-151.0,0.000248,7]
[399615078,1766548243370,-151.0,0.000248,7]
[399615079,1766548243380,-151.0,0.000248,7]
[399615080,1766548243390,-270.706318,0.000248,2]
[399615081,1766548243400,-270.706318,0.000248,2]
[399615082,1766548243410,-270.706318,0.000248,2]
[399615083,1766548243420,-151.0,0.000248,7]
[399615084,1766548243430,-270.706318,0.000248,2]
[399615085,1766548243440,-151.0,0.000248,7]
[399615086,1766548243451,-151.0,0.000248,7]
[399615087,1766548243461,-151.0,0.000248,7]
[399615088,1766548243472,-151.0,0.000248,7]
[399615089,1766548243483,-527776.04754096,0.000248,3]
[399615090,1766548243849,-239.25332066,0.000169,2]
[399615091,1766548243858,-500.0,0.0002,2]
[399615092,1766548243868,-239.25332066,0.000203,2]
[399615093,1766548243878,-239.25332066,0.000237,2]
[399615094,1766548243887,-32612.94358268,0.000248,3]
[399615095,1766548243910,-458.02667228,0.000248,3]
[399615096,1766548243943,-290.75446991,0.00024287,2]
[399615097,1766548244039,-39.85804367,0.00024287,2]
[399615100,1766548246233,-1869.7001,0.00024287,2]
[399615164,1766548503382,2905.74,0.000103,2]
[399615167,1766548503576,2905.74,0.00010842,2]
[399615169,1766548503776,459.52904536,0.00011384,2]
[399615170,1766548503803,2446.21095464,0.00011384,2]
[399615173,1766548503985,2905.74,0.00011926,2]
[399615175,1766548504190,2905.74,0.00012468,2]
[399615176,1766548504398,1742.31904536,0.00013011,2]
[399615177,1766548504424,1163.42095464,0.00013011,2]
[399615178,1766548504623,2905.74,0.00013553,2]
[399615179,1766548504822,2905.74,0.00014095,2]
[399615180,1766548505047,2905.74,0.00014637,2]
[399615354,1766549431779,-502.0801392,0.00015173,2]
[399615355,1766549431789,-502.01719743,0.00015173,2]
[399615356,1766549431805,-250.0,0.00015173,2]
[399615357,1766549431815,-2905.74,0.00015179,2]
[399615358,1766549431825,-300.0,0.0001552,2]
[399615359,1766549431835,-1200.0,0.0001552,2]
[399615360,1766549431845,-300.0,0.0001552,2]
[399615361,1766549431855,-8384.5734,0.00015521,2]
[399615362,1766549431866,-177.7888445,0.00015521,2]
[399615363,1766549431876,-197.89081002,0.00015521,2]
[399615364,1766549431887,-616.039,0.00015521,2]
[399615365,1766549431897,-16701.78751658,0.00015521,2]
[399615366,1766549431908,-10003.5,0.00015588,2]
[399615367,1766549431919,-151.0,0.00015611,2]
[399615368,1766549431929,-151.0,0.00015611,2]
[399615370,1766549431939,-151.0,0.00015611,2]
[399615372,1766549431949,-151.0,0.00015611,2]
[399615373,1766549431959,-151.0,0.00015611,2]
[399615374,1766549431969,-151.0,0.00015611,2]
[399615375,1766549431980,-151.0,0.00015611,2]
[399615377,1766549431990,-151.0,0.00015611,2]
[399615378,1766549432000,-151.0,0.00015611,2]
[399615380,1766549432010,-151.0,0.00015611,2]
[399615382,1766549432020,-151.0,0.00015611,2]
[399615384,1766549432030,-151.0,0.00015611,2]
[399615386,1766549432040,-151.0,0.00015611,2]
[399615388,1766549432050,-151.0,0.00015611,2]
[399615390,1766549432060,-151.0,0.00015611,2]
[399615392,1766549432070,-151.0,0.00015611,2]
[399615394,1766549432080,-151.0,0.00015611,2]
[399615396,1766549432090,-151.0,0.00015611,2]
[399615398,1766549432100,-151.0,0.00015611,2]
[399615400,1766549432110,-283.7540495,0.00015611,2]
[399615402,1766549432120,-500.0,0.0001562,2]
[399615404,1766549432130,-500.0,0.0001562,2]
[399615406,1766549432139,-500.0,0.0001562,2]
[399615408,1766549432149,-500.0,0.0001562,2]
[399615410,1766549432159,-572.54682447,0.0001562,2]
[399615411,1766549432174,-534.06568137,0.0001562,2]
[399615412,1766549432184,-500.0,0.0001562,2]
[399615413,1766549432194,-353.48522902,0.0001562,2]
[399615414,1766549432204,-500.0,0.0001562,2]
[399615415,1766549432218,-353.48522902,0.0001562,2]
[399615416,1766549432229,-500.0,0.0001562,2]
[399615417,1766549432239,-353.48522902,0.0001562,2]
[399615418,1766549432248,-500.0,0.0001562,2]
[399615419,1766549432258,-353.48522902,0.0001562,2]
[399615420,1766549432268,-500.0,0.0001562,2]
[399615421,1766549432278,-353.48522902,0.0001562,2]
[399615422,1766549432291,-418.37165734,0.0001562,2]
[399615423,1766549432301,-500.0,0.0001562,2]
[399615424,1766549432312,-353.48522902,0.0001562,2]
[399615425,1766549432321,-307.21418666,0.0001562,2]
[399615426,1766549432331,-500.0,0.0001562,2]
[399615427,1766549432341,-353.48522902,0.0001562,2]
[399615428,1766549432351,-500.0,0.0001562,2]
[399615429,1766549432362,-2160.07046784,0.0001562,2]
[399615430,1766549432372,-2905.74,0.00015721,2]
[399615431,1766549432382,-33504.5899,0.00015868,2]
[399615432,1766549432393,-1000.0,0.00015868,2]
[399615433,1766549432402,-500.0,0.00015968,2]
[399615434,1766549432412,-500.0,0.00015968,2]